[Event "Baku Open 2024"]
[Site "Baku"]
[Date "2024.07.02"]
[Round "4.15"]
[White "Mohamed Anees M"]
[Black "Iskandarov, Misratdin"]
[Result "1-0"]
[ECO "B32"]
[WhiteElo "2306"]
[BlackElo "2524"]
[Annotator "TA"]
[PlyCount "97"]
[EventDate "2024.06.29"]
[EventType "swiss"]
[EventCountry "AZE"]
[SourceTitle "playchess.com"]
[Source "ChessBase"]
[SourceQuality "1"]
[TimeControl "5400+30"]

{[%evp 24,97,58,37,75,59,125,130,140,141,235,233,200,137,146,134,139,155,139,132,145,134,189,172,162,112,122,120,119,122,123,109,162,157,235,244,294,255,235,222,259,248,306,295,331,300,430,406,516,475,507,513,629,582,622,575,2116,1951,4008,4354,1962,1763,29940,29942,29983,4814,29960,12837,29973,29974,29974,29975,29976,29977,29973,29973]} 1. e4 {[%emt 0:00:02]} c5 {[%emt 0:01:31]} 2. Nf3 {[%emt 0:00:04]} Nc6 {[%emt 0:01:46]} 3. d4 {[%emt 0:00:17]} cxd4 {[%emt 0:00:06]} 4. Nxd4 {[%emt 0:00:05]} e5 {[%emt 0:00:44]} 5. Nb5 {[%emt 0:00:36]} d6 {[%emt 0:00:06]} 6. N1c3 {[%emt 0:00:38]} a6 {[%emt 0:00:09]} 7. Na3 {[%emt 0:00:06]} Be6 {[%emt 0:00:03]} 8. Nc4 {[%emt 0:02:15]} b5 {[%emt 0:01:47]} 9. Ne3 {[%emt 0:00:13]} Nf6 {[%emt 0:00:21]} 10. Bd3 {[%emt 0:01:20]} Be7 {[%emt 0:00:44]} 11. O-O {[%emt 0:01:09]} O-O {[%emt 0:00:27]} 12. Ncd5 {[%emt 0:02:04] B32: Sicilian: Löwenthal and Kalashnikov Variations.} Nd7 {[%emt 0:06:41]} 13. c3 {[%emt 0:04:11]} Nc5 {[%emt 0:05:45]} 14. Bc2 {[%emt 0:00:36]} a5 $146 {[%emt 0:00:42]} ({Black should play} 14... Bg5 $14) ({Predecessor:} 14... Bg5 15. Qe2 Bxd5 16. Nxd5 Ne6 17. g3 Bxc1 18. Raxc1 Ne7 19. Rcd1 Rb8 20. Kh1 Nxd5 21. Rxd5 b4 22. Bb3 bxc3 23. bxc3 Nc5 24. Rfd1 Nxb3 25. axb3 Rxb3 26. Rxd6 {½-½ Golubov,S (2339)-Potapov,P (2482) Pardubice Czech op-A 25th 2014 (3)}) 15. Nf5 $16 {[%emt 0:02:37]} Bxf5 {[%emt 0:24:01]} 16. exf5 {[%emt 0:00:05]} Bg5 {[%emt 0:07:02]} (16... Bf6 $16 17. Be3 e4) 17. Qh5 $18 {[%emt 0:07:08]} Bxc1 {[%emt 0:01:01]} 18. Raxc1 {[%emt 0:00:05]} f6 {[%emt 0:07:03]} 19. b4 {[%emt 0:09:27]} Nd7 {[%emt 0:01:12]} 20. Bb3 {[%emt 0:01:41]} Kh8 {[%emt 0:00:16]} 21. Rfd1 $1 {[%emt 0:01:49]} a4 {[%emt 0:11:31]} 22. Bc2 {[%emt 0:00:25]} Ne7 {[%emt 0:01:04]} (22... Rb8 $16 23. Be4 Na7) 23. Nxe7 {[%emt 0:05:44]} Qxe7 {[%emt 0:01:07]} 24. Bd3 {[%emt 0:00:05]} ({White should try} 24. Rd5 $18) 24... Rab8 $16 {[%emt 0:06:53]} 25. Qe2 {[%emt 0:01:02]} d5 {[%emt 0:00:11]} 26. Bxb5 {[%emt 0:00:55]} Nb6 {[%emt 0:00:06]} 27. a3 {[%emt 0:01:11]} Rfd8 {[%emt 0:13:56] [#]} (27... Rbc8 $16) 28. c4 $1 $18 {[%emt 0:04:08]} d4 {[%emt 0:00:05]} (28... Nxc4 $16 {was worth a try.} 29. Bxc4 dxc4 30. Qxc4 (30. Rxc4 Qf7 $16) 30... h6) 29. Bc6 $18 {[%emt 0:00:14]} Qc7 {[%emt 0:01:09]} 30. Qe4 {[%emt 0:07:21]} Nc8 {[%emt 0:01:06]} 31. Bd5 {[%emt 0:04:39]} (31. Bxa4 $6 Qa7 $16) (31. c5 Ne7 32. Bxa4 Ra8 $14) 31... Ne7 {[%emt 0:01:09]} 32. Be6 {[%emt 0:00:18]} Nc8 {[%emt 0:01:56]} 33. Bxc8 {[%emt 0:04:13]} Rdxc8 {[%emt 0:00:30]} 34. c5 {[%emt 0:00:47]} Qf7 {[%emt 0:02:03]} (34... h6 $142 35. f4 Kg8 36. fxe5 (36. Rd3 Rf8 $18) 36... fxe5) 35. f4 $18 {[%emt 0:01:20]} Re8 {[%emt 0:01:11]} 36. fxe5 {[%emt 0:00:23]} fxe5 {[%emt 0:00:06]} 37. c6 {[%emt 0:02:19]} Qb3 {[%emt 0:00:24]} 38. c7 {[%emt 0:01:51]} Rbc8 {[%emt 0:00:05]} 39. h3 {[%emt 0:05:01]} Rxc7 {[%emt 0:01:46]} 40. Rxc7 {[%emt 0:00:11]} Qxd1+ {[%emt 0:00:05]} 41. Kh2 {[%emt 0:00:01]} Qh5 {[%emt 0:00:43]} 42. b5 {[%emt 0:00:19]} Qg5 {[%emt 0:01:54]} 43. Qxe5 {[%emt 0:01:14]} Rd8 {[%emt 0:00:07] [#]} 44. Rd7 {[%emt 0:00:11]} (44. b6 $142 $3 {[%mdl 512]} Rg8 (44... d3 45. b7) 45. b7 (45. Qxd4 Qxf5 46. b7 Qf8 $18) 45... Qf6 46. Qxf6 gxf6 47. Rc8 d3 48. b8=Q (48. b8=R Rxc8 49. Rxc8+ Kg7 50. Kg3 h6 51. Kh4 d2 52. Rd8 d1=B 53. Rxd1 Kh8) (48. Rxg8+ Kxg8 49. b8=Q+ Kf7 50. Qd8 d2 51. Qxd2 Ke8 52. Qd6 Kf7 53. Qe6+ Kf8) 48... Rxc8 49. Qxc8+ Kg7 50. Qd7+ (50. Qc7+ Kf8 51. Qd6+ Ke8 52. Qxf6 d2 53. Qe6+ Kd8 54. Qd6+ Kc8 55. Qxd2 Kc7) 50... Kf8 51. Kg3 (51. Qxa4 h6 52. Qd7 h5 53. Qxd3 Ke8 54. a4 Ke7 55. a5 Ke8) (51. Qxd3 Ke8 52. Qd6 Kf7 53. Qd7+ Kf8 54. Kg3 Kg8 55. Kh4 Kh8 56. Qe7 Kg8 57. Kh5 h6 58. Kxh6 Kh8 59. Qh7#)) 44... h6 {[%emt 0:00:32]} 45. Rxd4 {[%emt 0:00:49]} ({And not} 45. Qxd4 Rxd7 46. Qxd7 Qf4+ 47. Kg1 Qe3+ 48. Kf1 Qxa3 $11) 45... Rxd4 {[%emt 0:00:28]} 46. Qxd4 {[%emt 0:00:04]} Qxf5 {[%emt 0:00:05]} 47. b6 {[%emt 0:00:07]} ({Inferior is} 47. Qxa4 Qe5+ 48. g3 Qe2+ (48... Qb2+ 49. Kg1 $11) 49. Kg1 Qe1+ 50. Kg2 Qe2+ 51. Kg1 Qe1+ 52. Kg2 Qe2+ 53. Kg1 $11) 47... Qb5 {[%emt 0:01:17]} 48. Qd8+ {[%emt 0:00:14]} Kh7 {[%emt 0:00:02]} 49. Qc7 {[%emt 0:00:04]} 1-0

[Event "Baku Open 2024"]
[Site "Baku"]
[Date "2024.07.02"]
[Round "4.16"]
[White "Akhilbay, Imangali"]
[Black "Tsaruk, Maksim"]
[Result "1-0"]
[ECO "C54"]
[WhiteElo "2303"]
[BlackElo "2480"]
[Annotator "TA"]
[PlyCount "129"]
[EventDate "2024.06.29"]
[EventType "swiss"]
[EventCountry "AZE"]
[SourceTitle "playchess.com"]
[Source "ChessBase"]
[SourceQuality "1"]
[TimeControl "5400+30"]

{[%evp 66,129,-19,-8,-13,-8,-14,-14,-25,-20,-21,-30,-18,-34,-8,-8,-8,-8,-8,-135,-136,-147,-167,-174,-170,-167,-156,-192,-115,-118,0,-228,0,0,8,0,51,75,63,20,6,4,20,20,20,20,12,-519,-347,-920,1307,1159,1799,1543,1556,1525,2257,2177,2024,832,29972,29973,29982,29983,29983,29984]} 1. e4 {[%emt 0:00:02]} e5 {[%emt 0:00:09]} 2. Nf3 {[%emt 0:00:05]} Nc6 {[%emt 0:00:08]} 3. Bc4 {[%emt 0:00:06]} Bc5 {[%emt 0:00:10]} 4. c3 {[%emt 0:00:05]} Nf6 {[%emt 0:00:06]} 5. d3 {[%emt 0:00:06]} a6 {[%emt 0:00:14]} 6. a4 {[%emt 0:00:17] C54: Giuoco Piano: 4 c3 Nf6, main lines with 5 d4 and 5 d3.} Ba7 {[%emt 0:00:57]} 7. O-O {[%emt 0:00:21]} h6 {[%emt 0:00:55]} 8. Re1 {[%emt 0:01:25]} O-O {[%emt 0:00:27]} 9. h3 {[%emt 0:00:43]} d6 {[%emt 0:01:10]} 10. Nbd2 {[%emt 0:01:02]} Re8 {[%emt 0:00:18]} 11. b4 {[%emt 0:04:02]} Be6 {[%emt 0:00:07]} 12. Bxe6 {[%emt 0:00:06]} Rxe6 {[%emt 0:00:05]} 13. Bb2 {[%emt 0:00:05]} Nh5 {[%emt 0:06:05]} 14. b5 {[%emt 0:11:38]} Nb8 $146 {[%emt 0:18:52]} ({Predecessor:} 14... Ne7 15. d4 Nf4 16. Nf1 Neg6 17. Ng3 d5 18. c4 dxc4 19. d5 Re8 20. Bc3 Nd3 {0-1 George Samir,D (2003)-Minko,D (2298) Reykjavik Kvika op 2022 (4)}) 15. d4 {[%emt 0:05:44]} Nf4 {[%emt 0:00:23]} 16. Nf1 {[%emt 0:01:06]} Nd7 {[%emt 0:01:17]} 17. Bc1 {[%emt 0:07:24]} Ng6 {[%emt 0:06:54]} 18. Ng3 {[%emt 0:05:48]} Bb6 {[%emt 0:13:15]} 19. Be3 {[%emt 0:08:44]} axb5 {[%emt 0:02:16]} 20. axb5 {[%emt 0:00:13]} Re8 {[%emt 0:00:19]} 21. Qd2 {[%emt 0:06:08]} Rxa1 {[%emt 0:18:33]} 22. Rxa1 {[%emt 0:00:02]} Nf6 {[%emt 0:01:30]} 23. Re1 {[%emt 0:13:32]} Ba5 {[%emt 0:01:45]} 24. Bxh6 {[%emt 0:11:38]} gxh6 {[%emt 0:00:12]} 25. Nf5 {[%emt 0:00:15]} Nh7 {[%emt 0:00:43]} 26. Nxh6+ {[%emt 0:07:58]} Kg7 {[%emt 0:02:22]} 27. Nf5+ {[%emt 0:00:07]} Kh8 {[%emt 0:01:15]} 28. Qa2 {[%emt 0:00:29]} Bxc3 {[%emt 0:01:43]} 29. Rc1 {[%emt 0:00:25]} exd4 {[%emt 0:02:35]} 30. Qxf7 {[%emt 0:00:09]} Rg8 {[%emt 0:00:06]} 31. Nh6 {[%emt 0:01:00]} Qf8 {[%emt 0:06:43]} 32. Qxg8+ {[%emt 0:00:07]} Qxg8 {[%emt 0:00:01]} 33. Nxg8 {[%emt 0:00:09]} Kxg8 {[%emt 0:00:01]} 34. Rd1 $1 {[%emt 0:09:36]} Nf4 $1 {[%emt 0:00:06]} (34... Nf6 35. Nxd4 Nxe4 36. Nf3 $17) 35. Kf1 {[%emt 0:00:09]} Ne6 {[%emt 0:00:23]} 36. e5 {[%emt 0:00:50]} d5 {[%emt 0:06:39]} 37. h4 {[%emt 0:00:07]} Nhf8 {[%emt 0:02:39]} 38. Nh2 {[%emt 0:02:39]} Kg7 {[%emt 0:03:24]} 39. g3 $1 {[%emt 0:00:42]} Ng6 {[%emt 0:02:57]} 40. f4 {[%emt 0:01:02]} Ne7 {[%emt 0:00:01]} 41. Kf2 {[%emt 0:00:58]} Nf5 {[%emt 0:00:31]} 42. Kf3 {[%emt 0:02:12]} (42. Nf1 $11) 42... Ne3 $1 $17 {[%emt 0:00:12]} 43. Rc1 {[%emt 0:00:12] [#]} Bd2 $1 {[%emt 0:00:08]} 44. Ra1 {[%emt 0:00:56]} d3 {[%emt 0:00:08]} 45. Nf1 {[%emt 0:01:19]} Nd4+ {[%emt 0:01:55]} (45... Nxf1 46. Rxf1 Nd4+ 47. Kf2 Nxb5 48. Rd1 $11) 46. Kf2 {[%emt 0:00:01]} Ng4+ {[%emt 0:02:01]} (46... Bc3 $19 47. Kxe3 Bxa1 48. Kxd3 Nxb5) 47. Kg2 $17 {[%emt 0:00:05]} Ne3+ {[%emt 0:00:03]} (47... Bc3 $17 48. Ra2 Nxb5) 48. Kf2 $1 $19 {[%emt 0:00:20] [#]} Nxf1 $2 {[%emt 0:01:03]} (48... Bc3 $1 $19 49. Kxe3 Bxa1 50. Kxd3 Nxb5) 49. Rxf1 $11 {[%emt 0:00:07]} Nxb5 {[%emt 0:00:37]} 50. Rd1 {[%emt 0:00:09]} Bc3 {[%emt 0:00:34]} (50... Bb4 $11 51. Rxd3 Bc5+ 52. Kg2 Nd4) 51. Rxd3 $14 {[%emt 0:00:04]} d4 {[%emt 0:00:08]} 52. f5 {[%emt 0:01:54]} c5 {[%emt 0:00:00]} 53. Rf3 {[%emt 0:00:22]} c4 {[%emt 0:01:11]} 54. f6+ $1 {[%emt 0:00:43]} Kf8 $1 {[%emt 0:00:05]} 55. e6 $1 {[%emt 0:01:44]} d3 {[%emt 0:00:27]} 56. e7+ $2 {[%emt 0:00:38][%mdl 8192]} (56. Rf4 $1 $11 {and White has nothing to worry.}) 56... Kf7 $19 {[%emt 0:00:04]} 57. g4 $2 {[%emt 0:00:19]} (57. Rf4 Nd6 (57... Bxf6 58. Rxf6+ Kxe7 59. Rf4 $16) 58. g4) 57... Bd4+ $4 {[%emt 0:01:35][%mdl 8192]} (57... Bxf6 $2 {perishes.} 58. Rxf6+ Kxe7 59. Rf4 $18) (57... d2 $19 58. g5 Bxf6 (58... d1=B 59. g6+ Ke8 60. f7+ Kxe7 61. f8=Q+ Ke6 62. Re3+ Kd5 63. Rxc3)) 58. Ke1 $18 {[%emt 0:00:32]} Bxf6 {[%emt 0:00:30]} 59. Rxf6+ {[%emt 0:00:29]} Kxe7 {[%emt 0:00:01]} 60. Rf4 {[%emt 0:00:38]} c3 {[%emt 0:00:31]} 61. Rf3 {[%emt 0:00:03]} d2+ {[%emt 0:00:39]} 62. Kd1 {[%emt 0:00:03]} Ke6 {[%emt 0:00:27]} 63. h5 {[%emt 0:00:14]} Kd5 {[%emt 0:00:38]} 64. h6 {[%emt 0:00:42]} c2+ {[%emt 0:00:41]} 65. Kxd2 {[%emt 0:00:04]} 1-0

[Event "Baku Open 2024"]
[Site "Baku"]
[Date "2024.07.02"]
[Round "4.17"]
[White "Khamdamova, Afruza"]
[Black "Babazada, Khazar"]
[Result "1/2-1/2"]
[ECO "B06"]
[WhiteElo "2291"]
[BlackElo "2468"]
[Annotator "TA"]
[PlyCount "58"]
[EventDate "2024.06.29"]
[EventType "swiss"]
[EventCountry "AZE"]
[SourceTitle "playchess.com"]
[Source "ChessBase"]
[SourceQuality "1"]
[TimeControl "5400+30"]

{[%evp 9,58,38,44,10,20,5,15,10,22,10,12,18,3,7,27,-7,0,-10,0,-25,14,3,41,24,29,33,90,29,56,0,0,0,0,0,0,-41,0,0,46,46,114,122,115,113,118,117,127,118,114,99,116]} 1. e4 {[%emt 0:00:02]} g6 {[%emt 0:01:24]} 2. d4 {[%emt 0:00:52]} Bg7 {[%emt 0:00:17]} 3. Nc3 {[%emt 0:00:35]} d6 {[%emt 0:00:05]} 4. Nf3 {[%emt 0:04:52]} a6 {[%emt 0:01:44]} 5. a4 {[%emt 0:04:26]} Bg4 {[%emt 0:05:39]} 6. Bc4 {[%emt 0:07:25][%cal Oc4f7]} e6 {[%emt 0:01:20]} 7. Be3 {[%emt 0:05:01]} Nc6 {[%emt 0:00:39]} 8. Be2 {[%emt 0:04:33] The position is equal.} Nge7 {[%emt 0:01:54]} 9. O-O {[%emt 0:01:54]} O-O {[%emt 0:03:33]} 10. h3 {[%emt 0:01:54]} Bxf3 {[%emt 0:04:50]} 11. Bxf3 {[%emt 0:00:06]} f5 {[%emt 0:04:53] ...f4 would now be deadly.} 12. exf5 {[%emt 0:03:58]} Nxf5 {[%emt 0:01:07]} 13. Bxc6 {[%emt 0:10:30]} bxc6 {[%emt 0:00:49]} 14. Qd3 {[%emt 0:00:11]} Rb8 {[%emt 0:07:21]} 15. b3 {[%emt 0:03:18]} a5 {[%emt 0:00:53][%cal Oc6c5]} 16. Rad1 {[%emt 0:01:14]} d5 {[%emt 0:02:08]} 17. Ne2 {[%emt 0:02:07][%cal Bc3e2,Be2f4,Bf4d3][%mdl 32]} Qh4 {[%emt 0:08:18]} (17... Qd6 $14) 18. Bf4 {[%emt 0:06:31]} (18. Qd2 $16) 18... Rf7 {[%emt 0:02:26]} 19. Be5 {[%emt 0:02:08]} (19. Qc3 $14) 19... Bxe5 $11 {[%emt 0:04:45]} 20. dxe5 {[%emt 0:00:02]} Qb4 {[%emt 0:00:08]} 21. Qd2 {[%emt 0:14:15]} Qb6 {[%emt 0:00:26]} 22. Nf4 {[%emt 0:01:32]} c5 {[%emt 0:00:12]} (22... Ng3 {is interesting.} 23. Rfe1 Rbf8 24. Kh2 Nf1+) 23. Kh2 {[%emt 0:02:13]} Nd4 {[%emt 0:03:27]} (23... Rbf8 $11) 24. Nd3 $1 $14 {[%emt 0:00:54]} c4 {[%emt 0:00:55]} (24... Rbf8 $14) 25. bxc4 $16 {[%emt 0:00:06] White is better.} dxc4 {[%emt 0:00:04] [#]} 26. Rb1 $1 {[%emt 0:01:23][%mdl 512]} Nb3 {[%emt 0:06:18]} 27. Qc3 {[%emt 0:08:04]} Qa7 {[%emt 0:00:05]} 28. cxb3 {[%emt 0:02:07]} (28. Qxc4 $2 Nd2 29. Qa2 (29. Rxb8+ $2 Qxb8 30. Qc3 Nxf1+ $19) 29... Nxb1 (29... Rxb1 30. Rxb1 Nxb1 31. Qxb1 $17) (29... Nxf1+ 30. Rxf1 Qa6 31. Re1 $17) 30. Rxb1 Rxb1 31. Qxb1 Qb6 $17) 28... cxd3 {[%emt 0:00:02]} 29. Qxd3 {[%emt 0:00:03]} Qc5 {[%emt 0:02:49] Weighted Error Value: White=0.12 (very precise) /Black=0.16 (very precise) .  Mistake:       	White=2     	Black=3      Inaccurate:     	White=2     	Black=4      OK:         	White=7     	Black=8      Best:        	White=1     	Black=3      Strong:       	White=1     	---        Brilliant:      	White=1     	---} 1/2-1/2

[Event "Baku Open 2024"]
[Site "Baku"]
[Date "2024.07.02"]
[Round "4.18"]
[White "Shuvalova, Polina"]
[Black "Davidov, Samir"]
[Result "1-0"]
[ECO "B00"]
[WhiteElo "2467"]
[BlackElo "2244"]
[Annotator "TA"]
[PlyCount "131"]
[EventDate "2024.06.29"]
[EventType "swiss"]
[EventCountry "AZE"]
[SourceTitle "playchess.com"]
[Source "ChessBase"]
[SourceQuality "1"]
[TimeControl "5400+30"]

{[%evp 34,131,58,68,69,69,72,56,81,75,75,69,77,76,71,71,62,67,89,56,59,56,59,35,56,44,54,62,147,147,344,338,337,308,269,156,158,158,158,158,158,158,158,158,158,158,158,158,158,158,158,158,158,150,158,147,147,150,158,0,150,150,150,58,62,8,8,18,227,81,81,65,500,488,479,479,456,162,158,127,128,141,139,131,169,160,160,160,233,235,232,224,216,198,293,293,398,382,377,-5724]} 1. e4 {[%emt 0:00:04]} b6 {[%emt 0:01:21]} 2. d4 {[%emt 0:00:27]} Bb7 {[%emt 0:00:48]} 3. Nc3 {[%emt 0:00:24]} e6 {[%emt 0:01:16]} 4. a3 {[%emt 0:08:20]} a6 {[%emt 0:06:01]} 5. Bd3 {[%emt 0:06:42]} d6 {[%emt 0:02:29]} 6. Nf3 {[%emt 0:04:43] B00: Queen's Fianchetto Defence, Nimzowitsch Defence.} h6 {[%emt 0:01:47]} 7. O-O {[%emt 0:02:26]} Nd7 {[%emt 0:04:10]} 8. a4 $146 {[%emt 0:01:34]} ({Predecessor:} 8. e5 dxe5 9. Nxe5 Nxe5 10. dxe5 Be7 11. Qh5 g6 12. Bxg6 fxg6 13. Qxg6+ Kd7 14. Rd1+ {1-0 Desfontaine,V (1620)-Diankha,A Cappelle Online Rapid op 2021 (2)}) 8... Ngf6 {[%emt 0:02:25]} 9. Qe2 {[%emt 0:02:53]} e5 {[%emt 0:06:15]} 10. Be3 {[%emt 0:03:48]} Be7 {[%emt 0:02:50]} 11. Rad1 {[%emt 0:01:08]} O-O {[%emt 0:22:56]} 12. dxe5 {[%emt 0:07:28]} dxe5 {[%emt 0:03:50]} 13. Nh4 {[%emt 0:10:12]} Ne8 {[%emt 0:06:24]} 14. Nf5 {[%emt 0:01:56]} Nd6 {[%emt 0:00:19]} 15. Nxe7+ {[%emt 0:07:09]} Qxe7 {[%emt 0:00:06]} 16. f3 {[%emt 0:00:06]} a5 {[%emt 0:06:55]} 17. Qf2 {[%emt 0:04:07]} Rad8 {[%emt 0:08:30]} 18. Rfe1 {[%emt 0:01:11]} Nf6 {[%emt 0:04:36]} 19. b3 {[%emt 0:01:59]} Qe6 {[%emt 0:05:14]} 20. Ne2 {[%emt 0:01:43]} Rd7 {[%emt 0:01:57]} 21. c4 {[%emt 0:07:33]} Rfd8 {[%emt 0:01:00]} 22. Nc3 {[%emt 0:00:13]} Nc8 {[%emt 0:03:03]} 23. Bc2 {[%emt 0:02:29]} Rxd1 {[%emt 0:00:12]} 24. Bxd1 {[%emt 0:00:05]} Nd7 {[%emt 0:04:10]} 25. Nd5 {[%emt 0:03:54]} Bxd5 {[%emt 0:00:41]} 26. exd5 {[%emt 0:06:30]} Qd6 {[%emt 0:00:23]} 27. Bc2 {[%emt 0:00:22]} Re8 {[%emt 0:01:12]} 28. h4 {[%emt 0:02:09]} Ne7 {[%emt 0:00:42]} 29. Qg3 {[%emt 0:01:02]} f5 {[%emt 0:01:43]} 30. Bc1 {[%emt 0:00:39]} Qf6 {[%emt 0:01:28]} (30... Rd8 $14) 31. Bb2 $1 $16 {[%emt 0:01:43]} Ng6 $2 {[%emt 0:00:44]} (31... Qf8 $16 {might work better.} 32. Bxe5 Nxd5) 32. h5 $18 {[%emt 0:00:10]} Nh8 {[%emt 0:00:12]} (32... Nf4 $2 33. Qxf4 Kf8 34. Qxf5 $18) 33. f4 {[%emt 0:02:31]} Nf7 {[%emt 0:00:06]} 34. Qg6 {[%emt 0:00:08]} (34. Re2 $18) 34... Nd6 $16 {[%emt 0:00:59]} (34... Qh4 $2 35. g3 Qe7 36. Qxf5 $18 (36. Bxf5 Nf8 $18)) 35. fxe5 $1 {[%emt 0:08:05]} Nxe5 {[%emt 0:00:12]} 36. Qxf6 {[%emt 0:00:16]} gxf6 {[%emt 0:00:09]} 37. Kf1 {[%emt 0:00:28]} Kf7 {[%emt 0:00:22]} 38. Bc1 {[%emt 0:00:59]} Rg8 {[%emt 0:00:38]} 39. Bf4 {[%emt 0:00:30]} Re8 {[%emt 0:01:12]} 40. g3 {[%emt 0:00:13]} Kg7 {[%emt 0:00:25]} 41. Re2 {[%emt 0:01:02]} Re7 {[%emt 0:00:23]} 42. Kg2 {[%emt 0:00:24]} Re8 {[%emt 0:00:48]} 43. Bc1 {[%emt 0:00:14]} Re7 {[%emt 0:00:27]} 44. Kf1 {[%emt 0:00:29]} Re8 {[%emt 0:00:03]} 45. Ba3 {[%emt 0:01:20]} Kf7 {[%emt 0:00:12]} 46. Bc1 {[%emt 0:00:43]} Kg7 $1 {[%emt 0:00:16]} 47. Bb2 {[%emt 0:00:15]} Kf7 {[%emt 0:00:13]} 48. Bc3 {[%emt 0:00:04]} (48. Kg2 $1 $16) 48... Rg8 $14 {[%emt 0:00:43]} 49. Kf2 {[%emt 0:01:26]} (49. c5 $14 bxc5 (49... Rxg3 $2 50. Bxe5 fxe5 51. cxd6 $18) 50. Bxa5) 49... Rg5 $1 $11 {[%emt 0:01:07]} 50. c5 {[%emt 0:00:30]} Nb7 $2 {[%emt 0:01:05]} (50... Ne4+ $1 $11 {and Black is okay.} 51. Bxe4 fxe4) 51. Bxe5 {[%emt 0:00:37]} (51. d6 $1 $18 {[%cal Rd6c7] and the rest is easy.} cxd6 52. cxb6 Rxh5 53. Kg2) 51... fxe5 $16 {[%emt 0:00:02]} 52. cxb6 {[%emt 0:00:04]} ({But not} 52. Rxe5 Nxc5 53. Rxf5+ (53. Bxf5 $2 {is the wrong capture.} Kf6 $19) 53... Rxf5+ 54. Bxf5 Kf6 $11) 52... e4 $2 {[%emt 0:00:15][%mdl 8192]} ({Black should try} 52... cxb6 $14 53. Rxe5 Rxh5) 53. bxc7 $18 {[%emt 0:00:23]} Nd6 {[%emt 0:00:14]} 54. Bd1 {[%emt 0:00:30]} Rxh5 {[%emt 0:00:33]} 55. Ke3 $2 {[%emt 0:00:37]} (55. Rxe4 Nxe4+ 56. Kg2) 55... Rh1 $18 {[%emt 0:00:09]} 56. Rd2 {[%emt 0:00:58]} Ke7 {[%emt 0:01:06]} 57. g4 {[%emt 0:00:17]} Kd7 {[%emt 0:00:35]} 58. gxf5 {[%emt 0:00:10]} Nxf5+ {[%emt 0:00:12]} 59. Kxe4 {[%emt 0:00:35]} Nd6+ {[%emt 0:00:05] [#]} 60. Ke5 $1 {[%emt 0:00:44]} Re1+ {[%emt 0:00:17]} (60... Nf7+ $16 {was necessary.} 61. Kd4 Kxc7) 61. Be2 $18 {[%emt 0:00:39]} Kxc7 {[%emt 0:00:06]} 62. Rc2+ {[%emt 0:00:02]} Kd7 {[%emt 0:00:07]} 63. Kd4 {[%emt 0:00:04]} Rg1 {[%emt 0:00:51]} (63... h5 $142 64. Kc5 (64. Bxh5 Re4+ 65. Kc3 Rh4 $16) 64... Kc7 65. Bxh5 Rh1) 64. Rc5 $18 {[%emt 0:00:30]} Rg2 {[%emt 0:00:17]} 65. Bd3 {[%emt 0:01:01]} Nb7 {[%emt 0:03:12] [#]} 66. Ke4 $4 {[%emt 0:01:33][%mdl 8192]} (66. Bf5+ $1 $18 Ke8 (66... Ke7 67. Rc7+) 67. Rc8+ Ke7 68. Rc7+ Kf6 69. Be4) 1-0